fUST/lending_fUST_20250208
["ID","MTS","AMOUNT","RATE_DAILY","PERIOD"]
[352285073,1739028638886,-500.0,0.00010958,2]
[352285075,1739028638895,-424.02922834,0.00010958,2]
[352285077,1739028638905,-500.0,0.00010958,2]
[352285079,1739028638915,-500.0,0.00010958,2]
[352285081,1739028638924,-500.0,0.00010958,2]
[352285083,1739028638936,-500.0,0.00010958,2]
[352285085,1739028638948,-500.0,0.00010958,2]
[352285087,1739028638957,-500.0,0.00010958,2]
[352285089,1739028638967,-500.0,0.00010958,2]
[352285091,1739028638978,-500.0,0.00010958,2]
[352285093,1739028638988,-500.0,0.00010958,2]
[352285095,1739028638998,-500.0,0.00010958,2]
[352285097,1739028639007,-500.0,0.00010958,2]
[352285099,1739028639017,-500.0,0.00010958,2]
[352285101,1739028639027,-500.0,0.00010958,2]
[352285103,1739028639036,-500.0,0.00010958,2]
[352285105,1739028639047,-500.0,0.00010958,2]
[352285107,1739028639056,-500.0,0.00010958,2]
[352285109,1739028639066,-500.0,0.00010958,2]
[352285111,1739028639075,-500.0,0.00010958,2]
[352285113,1739028639085,-1798.53,0.00010958,2]
[352285115,1739028639094,-500.0,0.00010958,2]
[352285117,1739028639104,-246.26088437,0.00010958,2]
[352285119,1739028639113,-500.0,0.00010958,2]
[352285126,1739028639158,-500.0,0.00010958,2]
[352285128,1739028639168,-500.0,0.00010958,2]
[352285130,1739028639178,-500.0,0.00010958,2]
[352285132,1739028639191,-500.0,0.00010958,2]
[352285134,1739028639201,-500.0,0.00010958,2]
[352285136,1739028639210,-500.0,0.00010958,2]
[352285138,1739028639220,-500.0,0.00010958,2]
[352285140,1739028639229,-1087.96,0.00010958,2]
[352285142,1739028639239,-3375.81,0.00010958,2]
[352285144,1739028639249,-500.0,0.00010958,2]
[352285146,1739028639258,-500.0,0.00010958,2]
[352285148,1739028639268,-500.0,0.00010958,2]
[352285150,1739028639277,-500.0,0.00010958,2]
[352285152,1739028639286,-305.08325812,0.00010958,2]
[352285154,1739028639296,-500.0,0.00010958,2]
[352285156,1739028639305,-500.0,0.00010958,2]
[352285158,1739028639315,-803.7,0.00010958,2]
[352285160,1739028639325,-7667.06,0.00010958,2]
[352285162,1739028639335,-500.0,0.00010958,2]
[352285164,1739028639345,-500.0,0.00010958,2]
[352285166,1739028639355,-500.0,0.00010958,2]
[352285168,1739028639364,-3234.46,0.00010958,2]
[352285170,1739028639374,-510.69850912,0.00010958,2]
[352285172,1739028639383,-500.0,0.00010958,2]
[352285174,1739028639392,-1211.81,0.00010958,2]
[352285176,1739028639401,-1630.44,0.00010958,2]
[352285178,1739028639411,-500.0,0.00010958,2]
[352285180,1739028639420,-500.0,0.00010958,2]
[352285182,1739028639430,-500.0,0.00010958,2]
[352285184,1739028639442,-3066.49,0.00010958,2]
[352285186,1739028639453,-500.0,0.00010958,2]
[352285188,1739028639462,-500.0,0.00010958,2]
[352285190,1739028639471,-500.0,0.00010958,2]
[352285192,1739028639480,-500.0,0.00010958,2]
[352285195,1739028639491,-759.68,0.00010958,2]
[352285196,1739028639500,-500.0,0.00010958,2]
[352285198,1739028639509,-500.0,0.00010958,2]
[352285201,1739028639520,-500.40677505,0.00010958,2]
[352285203,1739028639529,-500.0,0.00010958,2]
[352285204,1739028639538,-500.0,0.00010958,2]
[352285206,1739028639547,-501.60542401,0.00010958,2]
[352285208,1739028639558,-518.24860747,0.00010958,2]
[352285210,1739028639571,-1431.69,0.00010958,2]
[352285212,1739028639580,-723.31,0.00010958,2]
[352285214,1739028639589,-500.0,0.00010958,2]
[352285216,1739028639598,-4036.51,0.00010958,2]
[352285218,1739028639608,-500.0,0.00010958,2]
[352285220,1739028639617,-1422.49,0.00010958,2]
[352285222,1739028639627,-500.0,0.00010958,2]
[352285224,1739028639637,-500.0,0.00010958,2]
[352285226,1739028639647,-500.0,0.00010958,2]
[352285228,1739028639657,-500.40310541,0.00010958,2]
[352285230,1739028639666,-502.19082117,0.00010958,2]
[352285232,1739028639675,-613.47385406,0.00010958,2]
[352285234,1739028639692,-500.0,0.00010958,2]
[352285236,1739028639713,-330.65962034,0.00010958,2]
[352285238,1739028639727,-500.0,0.00010958,2]
[352285240,1739028639736,-500.0,0.00010958,2]
[352285242,1739028639746,-500.0,0.00010958,2]
[352285244,1739028639755,-405.56566087,0.00010958,2]
[352285246,1739028639764,-501.75930105,0.00010958,2]
[352285248,1739028639773,-1021.94,0.00010958,2]
[352285250,1739028639783,-934.34,0.00010958,2]
[352285252,1739028639792,-500.0,0.00010958,2]
[352285254,1739028639801,-500.0,0.00010958,2]
[352285256,1739028639810,-500.0,0.00010958,2]
[352285258,1739028639819,-1181.28,0.00010958,2]
[352285260,1739028639829,-505.77411646,0.00010958,2]
[352285262,1739028639838,-500.0,0.00010958,2]
[352285264,1739028639847,-500.0,0.00010958,2]
[352285266,1739028639856,-151.0,0.00010959,2]
[352285268,1739028639865,-151.0,0.00010959,2]
[352285269,1739028639875,-323.919975,0.00010959,2]
[352285271,1739028639884,-323.919975,0.00010959,2]
[352285273,1739028639893,-151.0,0.00010959,2]
[352285275,1739028639904,-151.0,0.00010959,2]
[352285277,1739028639913,-151.0,0.00010959,2]
[352285279,1739028639923,-151.0,0.00010959,2]
[352285280,1739028639934,-151.0,0.00010959,2]
[352285282,1739028639944,-409.847552,0.00010959,2]
[352285284,1739028639953,-409.847552,0.00010959,2]
[352285287,1739028639963,-151.0,0.00010959,2]
[352285289,1739028639972,-173.0,0.00010959,2]
[352285291,1739028639981,-865.04,0.00010959,2]
[352285293,1739028639991,-500.0,0.00010973,2]
[352285295,1739028640000,-500.0,0.00010973,2]
[352285297,1739028640010,-500.0,0.00010973,2]
[352285299,1739028640020,-500.0,0.00010973,2]
[352285301,1739028640029,-500.0,0.00010973,2]
[352285303,1739028640039,-10000.0,0.00011,11]
[352285305,1739028640049,-151.0,0.00011,2]
[352285307,1739028640059,-151.0,0.00011,2]
[352285309,1739028640069,-151.0,0.00011,2]
[352285311,1739028640079,-151.0,0.00011,2]
[352285313,1739028640089,-644.7736491,0.00011,2]
[352285315,1739028640098,-151.0,0.00011,2]
[352285317,1739028640108,-500.0,0.00011006,2]
[352285319,1739028640118,-1317.45211786,0.00011007,2]
[352285321,1739028640127,-2704.32,0.00011092,2]
[352285323,1739028640136,-500.0,0.00011093,2]
[352285325,1739028640145,-500.0,0.00011093,2]
[352285327,1739028640155,-2704.32,0.00011093,2]
[352285329,1739028640165,-2704.32,0.00011093,2]
[352285331,1739028640174,-2704.32,0.00011093,2]
[352285333,1739028640186,-2704.32,0.00011093,2]
[352285337,1739028640195,-2704.3448513,0.00011093,2]
[352285340,1739028640205,-500.0,0.00011095,2]
[352285342,1739028640214,-511.474695,0.00011095,2]
[352285344,1739028640224,-500.0,0.00011095,2]
[352285346,1739028640234,-500.0,0.00011095,2]
[352285348,1739028640243,-500.0,0.00011095,2]
[352285350,1739028640253,-500.0,0.00011095,2]
[352285352,1739028640263,-513.11074289,0.00011095,2]
[352285354,1739028640272,-500.0,0.00011095,2]
[352285356,1739028640286,-500.0,0.00011095,2]
[352285358,1739028640295,-500.0,0.00011095,2]
[352285360,1739028640306,-500.0,0.00011095,2]
[352285361,1739028640315,-500.0,0.00011095,2]
[352285362,1739028640324,-500.0,0.00011095,2]
[352285363,1739028640334,-500.0,0.00011095,2]
[352285364,1739028640343,-500.0,0.00011095,2]
[352285365,1739028640352,-501.88941912,0.00011095,2]
[352285366,1739028640362,-500.0,0.00011095,2]
[352285367,1739028640372,-500.0,0.00011095,2]
[352285368,1739028640381,-500.0,0.00011095,2]
[352285369,1739028640390,-500.0,0.00011095,2]
[352285370,1739028640400,-500.0,0.00011095,2]
[352285371,1739028640410,-500.0,0.00011095,2]
[352285372,1739028640420,-500.0,0.00011095,2]
[352285373,1739028640429,-500.0,0.00011095,2]
[352285374,1739028640442,-500.0,0.00011095,2]
[352285375,1739028640453,-500.0,0.00011095,2]
[352285376,1739028640463,-500.0,0.00011095,2]
[352285377,1739028640472,-265.81682535,0.00011095,2]
[352285378,1739028640482,-500.0,0.00011095,2]
[352285379,1739028640491,-500.0,0.00011095,2]
[352285380,1739028640500,-309.43324102,0.00011095,2]
[352285381,1739028640510,-586.9400182,0.00011095,2]
[352285382,1739028640519,-500.0,0.00011095,2]
[352285383,1739028640528,-500.0,0.00011095,2]
[352285384,1739028640538,-500.0,0.00011095,2]
[352285385,1739028640547,-500.0,0.00011095,2]
[352285386,1739028640558,-507.16011455,0.00011095,2]
[352285387,1739028640568,-500.0,0.00011095,2]
[352285389,1739028640579,-500.0,0.00011095,2]
[352285391,1739028640591,-500.0,0.00011095,2]
[352285393,1739028640602,-580.59,0.00011095,2]
[352285395,1739028640611,-500.0,0.00011095,2]
[352285397,1739028640621,-500.0,0.00011095,2]
[352285399,1739028640630,-500.0,0.00011095,2]
[352285401,1739028640640,-500.0,0.00011095,2]
[352285403,1739028640650,-500.0,0.00011095,2]
[352285405,1739028640660,-500.0,0.00011095,2]
[352285407,1739028640670,-500.0,0.00011095,2]
[352285409,1739028640680,-500.0,0.00011095,2]
[352285411,1739028640692,-500.0,0.00011095,2]
[352285413,1739028640702,-500.0,0.00011095,2]
[352285415,1739028640711,-449.46208928,0.00011095,2]
[352285417,1739028640721,-514.83592159,0.00011095,2]
[352285419,1739028640731,-500.0,0.00011095,2]
[352285421,1739028640741,-500.0,0.00011095,2]
[352285424,1739028640751,-500.0,0.00011095,2]
[352285426,1739028640761,-500.0,0.00011095,2]
[352285428,1739028640772,-500.0,0.00011095,2]
[352285430,1739028640781,-500.0,0.00011095,2]
[352285432,1739028640790,-540.92187827,0.00011095,2]
[352285434,1739028640800,-500.0,0.00011095,2]
[352285436,1739028640810,-500.0,0.00011095,2]
[352285438,1739028640819,-500.0,0.00011095,2]
[352285440,1739028640828,-500.0,0.00011095,2]
[352285442,1739028640838,-759.3,0.00011095,2]
[352285444,1739028640847,-500.0,0.00011095,2]
[352285446,1739028640857,-500.0,0.00011095,2]
[352285448,1739028640866,-1403.03,0.00011095,2]
[352285451,1739028640876,-500.0,0.00011095,2]
[352285454,1739028640886,-500.0,0.00011095,2]
[352285456,1739028640896,-500.0,0.00011095,2]
[352285458,1739028640905,-500.0,0.00011095,2]
[352285460,1739028640917,-500.0,0.00011095,2]
[352285462,1739028640931,-500.0,0.00011095,2]
[352285464,1739028640943,-728.24,0.00011095,2]
[352285466,1739028640953,-500.0,0.00011095,2]
[352285468,1739028640963,-500.0,0.00011095,2]
[352285470,1739028640972,-500.0,0.00011095,2]
[352285472,1739028640983,-500.0,0.00011095,2]
[352285474,1739028640992,-500.0,0.00011095,2]
[352285476,1739028641003,-500.0,0.00011095,2]
[352285478,1739028641013,-545.32,0.00011095,2]
[352285480,1739028641023,-500.0,0.00011095,2]
[352285482,1739028641032,-505.69225249,0.00011095,2]
[352285484,1739028641043,-549.27551695,0.00011095,2]
[352285486,1739028641053,-500.0,0.00011095,2]
[352285488,1739028641063,-1305.14,0.00011095,2]
[352285490,1739028641072,-500.0,0.00011095,2]
[352285492,1739028641082,-500.0,0.00011095,2]
[352285494,1739028641092,-507.71800672,0.00011095,2]
[352285496,1739028641102,-500.0,0.00011095,2]
[352285499,1739028641112,-500.0,0.00011095,2]
[352285501,1739028641122,-648.66,0.00011095,2]
[352285503,1739028641132,-1325.01,0.00011095,2]
[352285505,1739028641142,-152.43906333,0.00011095,2]
[352285507,1739028641153,-552.73,0.00011095,2]
[352285509,1739028641163,-500.0,0.00011095,2]
[352285511,1739028641173,-500.0,0.00011095,2]
[352285513,1739028641186,-500.0,0.00011095,2]
[352285515,1739028641198,-500.0,0.00011095,2]
[352285517,1739028641208,-472.19035724,0.00011095,2]
[352285519,1739028641218,-546.2,0.00011095,2]
[352285521,1739028641228,-500.0,0.00011095,2]
[352285523,1739028641238,-500.0,0.00011095,2]
[352285525,1739028641248,-500.0,0.00011095,2]
[352285527,1739028641258,-479.39863776,0.00011095,2]
[352285529,1739028641267,-500.0,0.00011095,2]
[352285531,1739028641277,-500.0,0.00011095,2]
[352285533,1739028641287,-500.0,0.00011095,2]
[352285535,1739028641297,-970.43,0.00011095,2]
[352285537,1739028641307,-500.0,0.00011095,2]
[352285539,1739028641317,-500.0,0.00011095,2]
[352285541,1739028641327,-500.0,0.00011095,2]
[352285543,1739028641336,-500.0,0.00011095,2]
[352285545,1739028641345,-500.0,0.00011095,2]
[352285547,1739028641356,-500.0,0.00011095,2]
[352285549,1739028641366,-500.0,0.00011095,2]
[352285551,1739028641376,-500.0,0.00011095,2]
[352285553,1739028641386,-500.0,0.00011095,2]
[352285555,1739028641395,-229.68044973,0.00011095,2]
[352285557,1739028641405,-500.0,0.00011095,2]
[352285559,1739028641415,-508.24048055,0.00011095,2]
[352285561,1739028641424,-500.0,0.00011095,2]
[352285563,1739028641437,-500.0,0.00011095,2]
[352285565,1739028641447,-789.607995,0.00011095,2]
[352285567,1739028641456,-500.0,0.00011095,2]
[352285569,1739028641466,-500.0,0.00011095,2]
[352285571,1739028641476,-789.607995,0.00011095,2]
[352285573,1739028641485,-573.66213211,0.00011095,2]
[352285575,1739028641495,-500.0,0.00011095,2]
[352285577,1739028641504,-500.0,0.00011095,2]
[352285579,1739028641514,-500.0,0.00011095,2]
[352285581,1739028641524,-500.0,0.00011095,2]
[352285583,1739028641533,-587.96795408,0.00011095,2]
[352285585,1739028641543,-316.53317428,0.00011095,2]
[352285587,1739028641555,-182.82014023,0.00011095,2]
[352285589,1739028641574,-500.0,0.00011095,2]
[352285591,1739028641584,-500.0,0.00011095,2]
[352285593,1739028641594,-613.35121028,0.00011095,2]
[352285595,1739028641604,-500.0,0.00011095,2]
[352285597,1739028641614,-500.0,0.00011095,2]
[352285599,1739028641624,-1270.63,0.00011095,2]
[352285601,1739028641634,-540.58338602,0.00011095,2]
[352285603,1739028641643,-500.0,0.00011095,2]
[352285605,1739028641653,-1078.52,0.00011095,2]
[352285607,1739028641663,-610.78,0.00011095,2]
[352285609,1739028641672,-511.629958,0.00011095,2]
[352285611,1739028641682,-500.0,0.00011095,2]
[352285613,1739028641694,-500.0,0.00011095,2]
[352285615,1739028641704,-500.0,0.00011095,2]
[352285617,1739028641713,-151.0,0.00011095,2]
[352285619,1739028641723,-151.0,0.00011095,2]
[352285621,1739028641732,-500.0,0.00011095,2]
[352285623,1739028641741,-500.0,0.00011095,2]
[352285626,1739028641752,-500.0,0.00011095,2]
[352285628,1739028641761,-475.0087835,0.00011095,2]
[352285630,1739028641770,-500.0,0.00011095,2]
[352285632,1739028641780,-500.0,0.00011095,2]
[352285634,1739028641790,-500.0,0.00011095,2]
[352285636,1739028641799,-500.0,0.00011095,2]
[352285638,1739028641809,-500.0,0.00011095,2]
[352285640,1739028641818,-500.0,0.00011095,2]
[352285642,1739028641828,-151.0,0.00011095,2]
[352285644,1739028641838,-500.0,0.00011095,2]
[352285646,1739028641847,-504.16844457,0.00011095,2]
[352285648,1739028641857,-500.0,0.00011095,2]
[352285650,1739028641867,-977.07,0.00011095,2]
[352285652,1739028641878,-500.0,0.00011095,2]
[352285654,1739028641888,-500.0,0.00011095,2]
[352285656,1739028641898,-500.0,0.00011095,2]
[352285658,1739028641908,-500.43,0.00011095,2]
[352285660,1739028641918,-433.37081251,0.00011095,2]
[352285684,1739028642141,-66.62918749,0.00011095,2]
[352285686,1739028642151,-606.56,0.00011095,2]
[352285688,1739028642161,-500.0,0.00011095,2]
[352285691,1739028642171,-500.0,0.00011095,2]
[352285693,1739028642181,-500.0,0.00011095,2]
[352285695,1739028642194,-500.0,0.00011095,2]
[352285697,1739028642204,-500.0,0.00011095,2]
[352285699,1739028642214,-370.51582511,0.00011095,2]
[352285776,1739028642949,-500.0,0.00010958,2]
[352285778,1739028642959,-500.0,0.00010958,2]
[352285780,1739028642969,-500.0,0.00010958,2]
[352285783,1739028642979,-129.48417489,0.00011095,2]
[352285785,1739028642989,-500.0,0.00011095,2]
[352285787,1739028642998,-1089.29,0.00011095,2]
[352285789,1739028643008,-151.0,0.00011095,2]
[352285791,1739028643018,-332.29950909,0.00011095,2]
[352285793,1739028643028,-500.0,0.00011095,2]
[352285795,1739028643038,-500.0,0.00011095,2]
[352285797,1739028643047,-500.0,0.00011095,2]
[352285799,1739028643057,-368.655151,0.00011095,2]
[352285801,1739028643067,-500.0,0.00011095,2]
[352285803,1739028643077,-368.655151,0.00011095,2]
[352285805,1739028643087,-500.0,0.00011095,2]
[352285807,1739028643096,-500.0,0.00011095,2]
[352285809,1739028643106,-500.0,0.00011095,2]
[352285811,1739028643116,-500.0,0.00011095,2]
[352285813,1739028643126,-262.55,0.00011095,2]
[352285815,1739028643135,-262.55,0.00011095,2]
[352285817,1739028643145,-500.0,0.00011095,2]
[352285819,1739028643154,-739.39,0.00011095,2]
[352285821,1739028643165,-500.0,0.00011095,2]
[352285823,1739028643174,-262.55,0.00011095,2]
[352285825,1739028643184,-262.55,0.00011095,2]
[352285827,1739028643197,-500.0,0.00011095,2]
[352285829,1739028643207,-500.0,0.00011095,2]
[352285831,1739028643216,-659.83,0.00011095,2]
[352285835,1739028643227,-500.0,0.00011095,2]
[352285837,1739028643236,-504.28694573,0.00011095,2]
[352285839,1739028643246,-511.42788002,0.00011095,2]
[352285841,1739028643255,-500.0,0.00011095,2]
[352285843,1739028643265,-519.09,0.00011095,2]
[352285845,1739028643274,-500.0,0.00011095,2]
[352285847,1739028643284,-500.0,0.00011095,2]
[352285849,1739028643294,-500.0,0.00011095,2]
[352285851,1739028643304,-500.0,0.00011095,2]
[352285853,1739028643314,-500.0,0.00011095,2]
[352285855,1739028643324,-500.0,0.00011095,2]
[352285857,1739028643333,-500.0,0.00011095,2]
[352285859,1739028643343,-151.0,0.00011095,2]
[352285861,1739028643352,-500.0,0.00011095,2]
[352285863,1739028643362,-500.0,0.00011095,2]
[352285865,1739028643371,-500.0,0.00011095,2]
[352285867,1739028643381,-500.0,0.00011095,2]
[352285869,1739028643391,-500.0,0.00011095,2]
[352285871,1739028643400,-1619.3,0.00011095,2]
[352285873,1739028643410,-500.0,0.00011095,2]
[352285875,1739028643420,-500.0,0.00011095,2]
[352285877,1739028643430,-500.0,0.00011095,2]
[352285879,1739028643443,-573.25,0.00011095,2]
[352285881,1739028643453,-500.0,0.00011095,2]
[352285883,1739028643462,-3183.87,0.00011095,2]
[352285885,1739028643473,-500.0,0.00011095,2]
[352285887,1739028643483,-500.0,0.00011095,2]
[352285889,1739028643492,-500.0,0.00011095,2]
[352285891,1739028643503,-500.0,0.00011095,2]
[352285893,1739028643514,-1717.07,0.00011095,2]
[352285896,1739028643524,-4822.74,0.00011095,2]
[352285897,1739028643534,-500.0,0.00011095,2]
[352285899,1739028643543,-500.0,0.00011095,2]
[352285901,1739028643553,-15801.02,0.00011095,2]
[352285903,1739028643564,-1321.15,0.00011095,2]
[352285905,1739028643574,-500.0,0.00011095,2]
[352285907,1739028643587,-647.74345527,0.00011095,2]
[352285909,1739028643598,-500.0,0.00011095,2]
[352285912,1739028643608,-500.0,0.00011095,2]
[352285913,1739028643618,-500.0,0.00011095,2]
[352285915,1739028643631,-500.0,0.00011095,2]
[352285918,1739028643642,-500.0,0.00011095,2]
[352285920,1739028643651,-151.0,0.00011095,2]
[352285921,1739028643663,-151.0,0.00011095,2]
[352285923,1739028643673,-500.0,0.00011095,2]
[352285926,1739028643682,-500.0,0.00011095,2]
[352285928,1739028643698,-151.0,0.00011095,2]
[352285930,1739028643708,-152.667398,0.00011095,2]
[352285932,1739028643717,-151.0,0.00011095,2]
[352285934,1739028643729,-838.81,0.00011095,2]
[352285936,1739028643739,-500.0,0.00011095,2]
[352285938,1739028643748,-500.0,0.00011095,2]
[352285940,1739028643758,-979.1,0.00011095,2]
[352285942,1739028643767,-500.0,0.00011095,2]
[352285944,1739028643778,-505.07,0.00011095,2]
[352285946,1739028643787,-707.73,0.00011095,2]
[352285948,1739028643798,-500.0,0.00011095,2]
[352285950,1739028643808,-3291.13,0.00011095,2]
[352285952,1739028643817,-500.0,0.00011095,2]
[352285954,1739028643827,-1207.62,0.00011095,2]
[352285956,1739028643836,-323.919975,0.00011095,2]
[352285958,1739028643846,-323.919975,0.00011095,2]
[352285960,1739028643855,-500.0,0.00011095,2]
[352285962,1739028643865,-500.0,0.00011095,2]
[352285964,1739028643874,-323.919975,0.00011095,2]
[352285966,1739028643884,-500.0,0.00011095,2]
[352285968,1739028643894,-323.919975,0.00011095,2]
[352285970,1739028643904,-3595.4,0.00011095,2]
[352285972,1739028643914,-165.51770334,0.00011095,2]
[352285974,1739028643923,-500.0,0.00011095,2]
[352285976,1739028643933,-500.0,0.00011095,2]
[352285978,1739028643948,-1135.95,0.00011095,2]
[352285980,1739028643958,-376.87501903,0.00011095,2]
[352285982,1739028643968,-151.0,0.00011095,2]
[352285984,1739028643978,-151.0,0.00011095,2]
[352285986,1739028643988,-500.0,0.00011095,2]
[352285988,1739028643998,-500.0,0.00011095,2]
[352285990,1739028644008,-500.0,0.00011095,2]
[352285992,1739028644018,-500.0,0.00011095,2]
[352285994,1739028644028,-151.0,0.00011095,2]
[352285996,1739028644038,-151.0,0.00011095,2]
[352285998,1739028644048,-500.0,0.00011095,2]
[352286000,1739028644058,-1380.87,0.00011095,2]
[352286002,1739028644068,-151.0,0.00011095,2]
[352286004,1739028644078,-500.0,0.00011095,2]
[352286006,1739028644088,-151.0,0.00011095,2]
[352286008,1739028644098,-500.0,0.00011095,2]
[352286010,1739028644108,-13809.36,0.00011095,2]
[352286012,1739028644117,-507.58,0.00011095,2]
[352286014,1739028644127,-500.0,0.00011095,2]
[352286016,1739028644137,-500.0,0.00011095,2]
[352286018,1739028644148,-4261.71,0.00011095,2]
[352286020,1739028644159,-500.0,0.00011095,2]
[352286022,1739028644169,-500.0,0.00011095,2]
[352286024,1739028644179,-1106.77,0.00011095,2]
[352286027,1739028644190,-1231.44,0.00011095,2]
[352286029,1739028644200,-1457.38,0.00011095,2]
[352286030,1739028644210,-501.08047821,0.00011095,2]
[352286033,1739028644220,-500.0,0.00011095,2]
[352286034,1739028644230,-902.95,0.00011095,2]
[352286036,1739028644240,-151.0,0.00011095,2]
[352286039,1739028644249,-500.0,0.00011095,2]
[352286041,1739028644259,-151.0,0.00011095,2]
[352286042,1739028644269,-151.0,0.00011095,2]
[352286045,1739028644278,-151.0,0.00011095,2]
[352286047,1739028644288,-1648.45,0.00011095,2]
[352286049,1739028644298,-500.0,0.00011095,2]
[352286050,1739028644308,-500.0,0.00011095,2]
[352286052,1739028644317,-657.08,0.00011095,2]
[352286055,1739028644327,-151.0,0.00011095,2]
[352286057,1739028644336,-151.0,0.00011095,2]
[352286058,1739028644346,-500.0,0.00011095,2]
[352286061,1739028644356,-40543.23,0.00011095,2]
[352286063,1739028644366,-500.0,0.00011095,2]
[352286065,1739028644375,-500.0,0.00011095,2]
[352286067,1739028644385,-500.0,0.00011095,2]
[352286069,1739028644395,-500.0,0.00011095,2]
[352286071,1739028644405,-503.46361273,0.00011095,2]
[352286073,1739028644415,-500.0,0.00011095,2]
[352286075,1739028644425,-500.0,0.00011095,2]
[352286077,1739028644435,-288.04560858,0.00011095,2]
[352286079,1739028644447,-409.847552,0.00011095,2]
[352286081,1739028644456,-409.847552,0.00011095,2]
[352286083,1739028644466,-500.0,0.00011095,2]
[352286085,1739028644475,-507.09279173,0.00011095,2]
[352286087,1739028644484,-500.0,0.00011095,2]
[352286089,1739028644493,-500.0,0.00011095,2]
[352286091,1739028644503,-500.0,0.00011095,2]
[352286093,1739028644512,-409.847552,0.00011095,2]
[352286095,1739028644522,-409.847552,0.00011095,2]
[352286097,1739028644531,-500.0,0.00011095,2]
[352286099,1739028644541,-467.40683247,0.00011095,2]
[352286101,1739028644550,-509.85656518,0.00011095,2]
[352286103,1739028644561,-1798.53,0.00011095,2]
[352286105,1739028644574,-500.0,0.00011095,2]
[352286107,1739028644583,-500.0,0.00011095,2]
[352286109,1739028644593,-500.0,0.00011095,2]
[352286111,1739028644603,-500.0,0.00011095,2]
[352286113,1739028644613,-500.0,0.00011095,2]
[352286115,1739028644623,-500.0,0.00011095,2]
[352286117,1739028644632,-151.0,0.00011095,2]
[352286119,1739028644642,-151.0,0.00011095,2]
[352286121,1739028644653,-151.0,0.00011095,2]
[352286122,1739028644663,-500.0,0.00011095,2]
[352286123,1739028644674,-1087.96,0.00011095,2]
[352286124,1739028644683,-3375.81,0.00011095,2]
[352286125,1739028644696,-500.0,0.00011095,2]
[352286126,1739028644706,-500.0,0.00011095,2]
[352286127,1739028644715,-500.0,0.00011095,2]
[352286128,1739028644725,-500.0,0.00011095,2]
[352286129,1739028644736,-500.0,0.00011095,2]
[352286130,1739028644747,-803.7,0.00011095,2]
[352286131,1739028644756,-7667.06,0.00011095,2]
[352286132,1739028644767,-500.0,0.00011095,2]
[352286133,1739028644776,-500.0,0.00011095,2]
[352286134,1739028644786,-3234.46,0.00011095,2]
[352286135,1739028644796,-418.73119519,0.00011095,2]
[352286136,1739028644805,-1211.81,0.00011095,2]
[352286137,1739028644815,-1630.44,0.00011095,2]
[352286138,1739028644824,-500.0,0.00011095,2]
[352286139,1739028644834,-500.0,0.00011095,2]
[352286140,1739028644843,-3066.49,0.00011095,2]